bitfinex-derivatives/quotes_BTCF0:USTF0_20250213
["timestamp","ask_amount","ask_price","bid_price","bid_amount"]
[1739453868529,0.18679637,96240.0,96229.0,0.3608]
[1739453869032,0.207786,96239.0,96229.0,0.3608]
[1739453869223,0.2077961,96235.0,96223.0,0.00015594]
[1739453869425,0.18679637,96233.0,96223.0,0.00015594]
[1739453869828,0.00052001,96236.0,96223.0,0.00015594]
[1739453870024,0.18679637,96240.0,96227.0,0.3608]
[1739453871329,0.2077859,96239.0,96227.0,0.3608]
[1739453872039,0.3608,96233.0,96223.0,0.00015594]
[1739453872237,0.75539637,96233.0,96223.0,0.00015594]
[1739453872540,0.1827,96232.0,96223.0,0.00015594]
[1739453872732,0.2078031,96231.0,96223.0,0.00015594]
[1739453872932,0.2078088,96229.0,96223.0,0.00015594]
[1739453873133,0.1827,96232.0,96223.0,0.00015594]
[1739453874630,0.1827,96232.0,96227.0,0.3608]
[1739453875232,0.00015594,96242.0,96228.0,0.2078088]
[1739453875438,0.00015594,96242.0,96228.0,0.3608]
[1739453876337,0.18679637,96240.0,96228.0,0.3608]
[1739453877028,0.18679637,96240.0,96238.0,0.3608]
[1739453877224,0.00015594,96242.0,96238.0,0.3608]
[1739453877834,0.00015594,96242.0,96241.0,0.3608]
[1739453879539,0.18679637,96260.0,96241.0,0.3608]
[1739453879833,0.18679637,96260.0,96255.0,0.3608]
[1739453880035,0.2077361,96263.0,96255.0,0.3608]
[1739453880238,0.2077485,96257.0,96255.0,0.3608]
[1739453880440,0.18679637,96270.0,96255.0,0.3608]
[1739453880640,0.00015584,96266.0,96255.0,0.3608]
[1739453880843,0.00015584,96266.0,96263.0,0.3608]
[1739453881637,0.00015584,96266.0,96264.0,0.2077306]
[1739453882227,0.76884,96284.0,96263.0,0.3618]
[1739453882436,0.76884,96284.0,96283.0,0.3608]
[1739453882632,0.86984,96284.0,96283.0,0.3608]
[1739453882834,0.01643648,96304.0,96283.0,0.3608]
[1739453883037,0.2076425,96306.0,96294.0,0.3608]
[1739453883235,0.18679637,96310.0,96294.0,0.3608]
[1739453883437,0.1771,96312.0,96300.0,0.2076529]
[1739453883657,0.1771,96312.0,96308.0,0.3608]
[1739453884035,0.0001548,96316.0,96308.0,0.3608]
[1739453885239,0.3608,96314.0,96294.0,0.3608]
[1739453885441,0.2076348,96309.0,96308.0,0.001]
[1739453885639,0.7216,96314.0,96285.0,0.00015584]
[1739453885839,0.2076811,96288.0,96285.0,0.00015584]
[1739453886039,0.3608,96292.0,96285.0,0.00015584]
[1739453886040,0.207684,96287.0,96285.0,0.00015584]
[1739453886741,0.3608,96293.0,96285.0,0.00015584]
[1739453887139,0.2076715,96292.0,96285.0,0.00015584]
[1739453887443,0.2076747,96291.0,96285.0,0.00015584]
[1739453887839,0.2076766,96290.0,96285.0,0.00015584]
[1739453888334,0.2076844,96286.0,96285.0,0.00015584]
[1739453888943,0.2076971,96281.0,96271.0,0.3608]
[1739453889141,0.39449347,96281.0,96271.0,0.3608]
[1739453889344,0.54759637,96281.0,96271.0,0.3608]
[1739453889744,0.3608,96272.0,96263.0,0.00155829]
[1739453890042,0.3608,96264.0,96263.0,0.00155829]
[1739453891044,0.3608,96264.0,96263.0,0.00255829]
[1739453891743,0.3608,96264.0,96263.0,0.00155829]
[1739453892044,0.3608,96264.0,96263.0,0.00355829]
[1739453892545,0.3608,96272.0,96263.0,0.00355829]
[1739453893443,0.2077176,96271.0,96263.0,0.00355829]
[1739453893949,0.3608,96264.0,96258.0,0.00015575]
[1739453894548,0.18748912,96264.0,96258.0,0.00015575]
[1739453896337,0.18748912,96264.0,96226.0,0.36235863]
[1739453896542,0.39458057,96240.0,96228.0,0.3608]
[1739453896742,0.18679637,96240.0,96228.0,0.3608]
[1739453896945,0.3608,96243.0,96228.0,0.3608]
[1739453897150,0.09928,96242.0,96228.0,0.3608]
[1739453897648,0.2077881,96238.0,96228.0,0.3608]
[1739453897844,0.18679637,96240.0,96228.0,0.3608]
[1739453898039,0.2078062,96230.0,96228.0,0.3608]
[1739453898241,0.3608,96235.0,96226.0,0.00155863]
[1739453898445,0.3608,96235.0,96228.0,0.002]
[1739453898640,0.2078059,96230.0,96228.0,0.002]
[1739453899041,0.3608,96235.0,96228.0,0.002]
[1739453899248,0.09884,96234.0,96228.0,0.002]
[1739453899642,0.09884,96234.0,96228.0,0.3628]
[1739453899946,0.09872,96233.0,96231.0,0.2078022]
[1739453900149,0.1699,96258.0,96232.0,0.3608]
[1739453900446,0.3608,96268.0,96232.0,0.3608]
[1739453900447,0.3608,96268.0,96248.0,0.2077661]
[1739453900647,0.3608,96268.0,96253.0,0.3608]
[1739453900952,0.0988,96267.0,96244.0,0.3608]
[1739453901346,0.3065258,96267.0,96244.0,0.3608]
[1739453901650,0.2077258,96267.0,96244.0,0.3608]
[1739453901849,0.00015585,96265.0,96246.0,0.00015585]
[1739453902048,0.00015585,96265.0,96248.0,0.001]
[1739453902546,0.18679637,96260.0,96248.0,0.001]
[1739453902945,0.39453707,96260.0,96248.0,0.001]
[1739453903855,0.39453707,96260.0,96246.0,0.00015585]
[1739453904151,0.18679637,96260.0,96252.0,0.3608]
[1739453904340,0.00015585,96265.0,96252.0,0.5685572]
[1739453904546,0.00015585,96265.0,96252.0,0.3608]
[1739453904945,0.00015585,96265.0,96262.0,0.3608]
[1739453905857,0.3608,96264.0,96252.0,0.002]
[1739453906058,0.3608,96256.0,96252.0,0.002]
[1739453906657,0.2077456,96258.0,96252.0,0.002]
[1739453906855,0.18679637,96262.0,96246.0,0.00015585]
[1739453907246,0.18679637,96262.0,96246.0,0.36095585]
[1739453907453,0.36095585,96265.0,96246.0,0.36095585]
[1739453907851,0.18679637,96260.0,96246.0,0.36095585]
[1739453908048,0.3608,96257.0,96246.0,0.36095585]
[1739453908453,0.3608,96257.0,96246.0,0.36195585]
[1739453909851,0.3608,96257.0,96246.0,0.36095585]
[1739453910250,0.2077686,96247.0,96246.0,0.00015585]
[1739453910452,0.2077539,96254.0,96246.0,0.00015585]
[1739453910647,0.3608,96257.0,96246.0,0.00415585]
[1739453910957,0.2077686,96247.0,96246.0,0.00415585]
[1739453911464,0.3608,96249.0,96232.0,0.00155866]
[1739453911668,0.2077799,96242.0,96232.0,0.00155866]
[1739453912163,0.3547,96246.0,96232.0,0.00155866]
[1739453912561,0.5685646,96249.0,96232.0,0.00155866]
[1739453912860,0.3608,96257.0,96236.0,0.3608]
[1739453913162,0.09792,96256.0,96244.0,0.3608]
[1739453913555,0.2077363,96262.0,96244.0,0.3608]
[1739453914162,0.39453717,96260.0,96244.0,0.3608]
[1739453914363,0.2077493,96256.0,96244.0,0.3608]
[1739453914961,0.2077753,96244.0,96236.0,0.3608]
[1739453915163,0.3608,96254.0,96224.0,0.3608]
[1739453915164,0.3608,96246.0,96224.0,0.3608]
[1739453915465,0.2077929,96236.0,96224.0,0.3608]
[1739453916164,0.18679637,96240.0,96224.0,0.3608]
[1739453916364,0.00015585,96242.0,96224.0,0.3608]
[1739453916564,0.20793575,96242.0,96224.0,0.3608]
[1739453917168,0.20793575,96242.0,96229.0,0.00215585]
[1739453917367,0.00015585,96242.0,96234.0,0.3608]
[1739453918162,0.2077838,96240.0,96229.0,0.00215585]
[1739453918363,0.18679637,96240.0,96229.0,0.00215585]
[1739453918876,0.00015585,96242.0,96229.0,0.00215585]
[1739453919271,0.00415585,96242.0,96229.0,0.00015585]
[1739453919674,0.00015585,96242.0,96233.0,0.3608]
[1739453919879,0.004,96240.0,96233.0,0.3608]
[1739453920175,0.004,96240.0,96229.0,0.00015585]
[1739453920176,0.45784,96239.0,96229.0,0.00015585]
[1739453920481,0.18679637,96239.0,96229.0,0.00015585]
[1739453920673,0.00415585,96242.0,96229.0,0.00215585]
[1739453920874,0.00415585,96242.0,96232.0,0.3608]
[1739453921378,0.00415585,96242.0,96241.0,0.3608]
[1739453922082,0.00015585,96242.0,96241.0,0.3608]
[1739453922382,0.00015585,96242.0,96232.0,0.3608]
[1739453922778,0.00715585,96242.0,96241.0,0.001]
[1739453922978,0.00715585,96242.0,96241.0,0.3618]
[1739453923678,0.00015585,96242.0,96241.0,0.3608]
[1739453923882,0.00515585,96242.0,96241.0,0.3608]
[1739453924379,0.00515585,96242.0,96232.0,0.3618]
[1739453924587,0.00515585,96242.0,96232.0,0.3608]
[1739453924886,0.00515585,96242.0,96241.0,0.3608]
[1739453925893,0.00015585,96242.0,96241.0,0.3608]
[1739453926185,0.00715585,96242.0,96241.0,0.3678]
[1739453926986,0.00015585,96242.0,96241.0,0.3668]
[1739453927176,0.00715585,96242.0,96241.0,0.3618]
[1739453928482,0.00715585,96242.0,96241.0,0.001]
[1739453928689,0.00015585,96242.0,96233.0,0.3608]
[1739453928883,0.00715585,96242.0,96241.0,0.001]
[1739453930080,0.06737092,96242.0,96241.0,0.3618]
[1739453930284,0.06737092,96242.0,96241.0,0.5695815]
[1739453930485,0.06537092,96242.0,96241.0,0.5685815]
[1739453931387,0.06537092,96242.0,96241.0,0.3608]
[1739453931687,0.06537092,96242.0,96241.0,0.3668]
[1739453932088,0.27515032,96242.0,96241.0,0.3678]
[1739453932284,0.27515032,96242.0,96241.0,0.007]
[1739453933390,0.27515032,96242.0,96216.0,0.3608]
[1739453933391,0.00715585,96242.0,96206.0,0.18520118]
[1739453933592,0.2078282,96220.0,96208.0,0.3608]
[1739453933788,0.18679637,96222.0,96206.0,0.18520118]
[1739453934086,0.207842,96213.0,96206.0,0.18520118]
[1739453935691,0.207842,96213.0,96212.0,0.003559]
[1739453936086,0.207842,96213.0,96212.0,0.010559]
[1739453936287,0.211842,96213.0,96212.0,0.008559]
[1739453937098,0.211842,96213.0,96212.0,0.002559]
[1739453937792,0.272088,96213.0,96212.0,0.002559]
[1739453937994,0.2078614,96204.0,96203.0,1e-08]
[1739453938289,0.5686614,96204.0,96203.0,1e-08]
[1739453939489,0.3618,96204.0,96178.0,0.3608]
[1739453939691,0.3608,96193.0,96178.0,0.3608]
[1739453939995,0.18679637,96190.0,96178.0,0.3608]
[1739453940191,0.18679637,96190.0,96160.0,0.54759637]
[1739453940393,0.18679637,96190.0,96178.0,0.3608]
[1739453940582,0.3608,96193.0,96180.0,0.1952]
[1739453940782,0.09536,96192.0,96180.0,0.1952]
[1739453941090,0.2079092,96182.0,96180.0,0.007]
[1739453941393,0.207922,96176.0,96175.0,0.00015594]
[1739453941590,0.3608,96176.0,96159.0,0.18676051]
[1739453941791,0.3608,96164.0,96159.0,0.18676051]
[1739453942389,0.2079501,96163.0,96159.0,0.18676051]
[1739453942591,0.3608,96164.0,96159.0,0.18676051]
[1739453942787,0.3608,96164.0,96159.0,0.18520118]
[1739453942993,0.3608,96164.0,96154.0,0.3569]
[1739453943189,0.3628,96164.0,96154.0,0.3569]
[1739453943491,0.3628,96164.0,96159.0,0.003]
[1739453943798,0.09492,96163.0,96159.0,0.003]
[1739453943992,0.002,96164.0,96160.0,0.5687551]
[1739453944295,0.003,96164.0,96162.0,0.5687504]
[1739453944597,0.00015594,96171.0,96170.0,0.2079349]
[1739453944788,0.00155998,96190.0,96170.0,0.3608]
[1739453945102,0.18835635,96190.0,96185.0,0.3608]
[1739453945392,0.39624885,96190.0,96174.0,1.5]
[1739453945588,0.18835635,96190.0,96170.0,0.3608]
[1739453945793,0.005,96171.0,96170.0,0.3608]
[1739453945996,0.2079654,96156.0,96154.0,0.3569]
[1739453946203,0.005,96171.0,96141.0,0.3608]
[1739453946204,0.3608,96161.0,96141.0,0.3608]
[1739453946400,0.3608,96152.0,96141.0,0.3608]
[1739453946699,0.2079877,96146.0,96144.0,0.00015594]
[1739453947099,0.3608,96152.0,96144.0,0.00015594]
[1739453947502,0.3618,96152.0,96144.0,0.00015594]
[1739453949091,0.3608,96150.0,96144.0,0.00015594]
[1739453949298,0.2079883,96146.0,96144.0,0.00015594]
[1739453949507,0.3608,96150.0,96144.0,0.00115594]
[1739453949698,0.37602704,96150.0,96144.0,0.00115594]
[1739453950303,0.58500534,96150.0,96144.0,0.00115594]
[1739453950604,0.37702704,96150.0,96144.0,0.00115594]
[1739453952096,0.37702704,96150.0,96144.0,0.00015594]
[1739453952398,0.37602704,96150.0,96144.0,0.00015594]
[1739453952603,0.37702704,96150.0,96144.0,0.00015594]
[1739453952805,0.001,96150.0,96144.0,0.00015594]
[1739453953604,0.2079809,96149.0,96144.0,0.00015594]
[1739453954397,0.207989,96145.0,96144.0,0.00015594]
[1739453954593,0.3608,96145.0,96122.0,0.71]
[1739453954902,0.3608,96130.0,96122.0,0.71]
[1739453956301,0.3608,96130.0,96116.0,0.00010523]
[1739453956509,0.5688388,96122.0,96116.0,0.00010523]
[1739453957005,0.3608,96122.0,96101.0,0.3586]
[1739453957206,0.3608,96109.0,96101.0,0.3586]
[1739453957704,0.18679637,96120.0,96101.0,0.3586]
[1739453958210,0.18695239,96120.0,96101.0,0.3586]
[1739453958405,0.00015602,96120.0,96108.0,0.3608]
[1739453958609,0.00015602,96120.0,96117.0,0.5688489]
[1739453958810,0.00115602,96120.0,96117.0,0.5688489]
[1739453958995,0.00115602,96120.0,96117.0,0.3608]
[1739453959702,0.00115602,96120.0,96118.0,0.2080474]
[1739453959703,0.00215602,96120.0,96118.0,0.2080474]
[1739453959903,0.00115602,96120.0,96118.0,0.2080474]
[1739453960209,0.35829637,96150.0,96117.0,0.3628]
[1739453960411,0.35829637,96150.0,96128.0,0.3608]
[1739453960412,0.18679637,96140.0,96128.0,0.3608]
[1739453960811,0.2080345,96124.0,96118.0,0.189]
[1739453961107,0.001,96120.0,96118.0,0.189]
[1739453961708,0.001,96120.0,96119.0,0.2080453]
[1739453961908,0.00015602,96131.0,96119.0,0.3]
[1739453962105,0.00015602,96131.0,96130.0,0.5688215]
[1739453962611,0.00015602,96131.0,96130.0,0.3608]
[1739453963412,0.00215602,96131.0,96130.0,0.3608]
[1739453967916,0.00215602,96131.0,96130.0,0.5688215]
[1739453968213,0.00215602,96131.0,96130.0,0.3608]
[1739453969219,0.00215602,96131.0,96130.0,0.5688215]
[1739453969621,0.1862,96172.0,96149.0,0.2079803]
[1739453969819,0.00056001,96161.0,96160.0,0.39475297]
[1739453970018,0.3608,96187.0,96168.0,0.2079379]
[1739453970323,0.3608,96187.0,96174.0,0.3608]
[1739453970620,0.18679637,96200.0,96174.0,0.3608]
[1739453970621,0.06929738,96179.0,96178.0,0.2079176]
[1739453971225,0.21523821,96182.0,96178.0,0.3]
[1739453971414,0.21523821,96182.0,96181.0,0.2079112]
[1739453972216,0.00015602,96186.0,96181.0,0.3]
[1739453972521,0.00015602,96186.0,96185.0,0.5687025]
[1739453972723,0.24797197,96188.0,96187.0,0.2078982]
[1739453973217,0.24797197,96188.0,96187.0,0.5078982]
[1739453973419,0.1754,96226.0,96187.0,0.3]
[1739453973613,0.1754,96226.0,96214.0,0.3608]
[1739453973816,0.2078488,96210.0,96202.0,0.3608]
[1739453974016,0.2078488,96210.0,96205.0,0.00015592]
[1739453975222,0.2148488,96210.0,96205.0,0.00015592]
[1739453975424,0.207855,96207.0,96205.0,0.00015592]
[1739453975626,0.1812,96210.0,96205.0,0.00015592]
[1739453976715,0.2078556,96207.0,96205.0,0.00015592]
[1739453977024,0.1872,96210.0,96205.0,0.00015592]
[1739453978110,0.5686571,96206.0,96205.0,0.00015592]
[1739453978426,0.5686571,96206.0,96162.0,0.18520118]
[1739453978427,0.0519654,96204.0,96173.0,0.3608]
[1739453978720,0.3608,96182.0,96171.0,0.00155979]
[1739453978912,0.3608,96174.0,96171.0,0.00155979]
[1739453979118,0.3549,96173.0,96171.0,0.00155979]
[1739453979617,0.3549,96173.0,96163.0,0.00015592]
[1739453979826,0.54169637,96173.0,96163.0,0.00015592]
[1739453980523,0.54269637,96173.0,96163.0,0.00015592]
[1739453981516,0.1744,96172.0,96163.0,0.00015592]
[1739453981815,0.3823328,96172.0,96163.0,0.00015592]
[1739453982422,0.2079338,96171.0,96163.0,0.00015592]
[1739453982815,0.2079338,96171.0,96163.0,0.00215592]
[1739453983217,0.1744,96172.0,96163.0,0.00215592]
[1739453983925,0.1764,96172.0,96163.0,0.00215592]
[1739453985331,0.1764,96172.0,96163.0,0.00015592]
[1739453985526,0.1764,96172.0,96163.0,0.00215592]
[1739453987923,0.20794,96168.0,96163.0,0.00215592]
[1739453988433,0.3608,96165.0,96147.0,0.3608]
[1739453988725,0.3608,96165.0,96120.0,0.18679637]
[1739453988726,0.207964,96157.0,96137.0,0.3608]
[1739453989120,0.18679637,96160.0,96147.0,0.3608]
[1739453989325,0.18679637,96160.0,96137.0,0.3608]
[1739453989529,0.18679637,96160.0,96141.0,0.2079968]
[1739453989725,0.00015601,96158.0,96141.0,0.2079968]
[1739453989925,0.2079654,96156.0,96139.0,0.00015601]
[1739453990118,0.2079675,96155.0,96139.0,0.00015601]
[1739453990722,0.001,96157.0,96139.0,0.00015601]
[1739453990923,0.001,96157.0,96145.0,0.3608]
[1739453991129,0.091,96156.0,96139.0,0.00015601]
[1739453991328,0.2079676,96155.0,96145.0,0.3608]
[1739453991529,0.2089676,96155.0,96145.0,0.3608]
[1739453991834,0.001,96155.0,96145.0,0.3608]
[1739453992126,0.09088,96154.0,96145.0,0.3628]
[1739453992332,0.09088,96154.0,96153.0,0.3608]
[1739453992718,0.001,96156.0,96155.0,0.2079674]
[1739453992918,0.00015601,96158.0,96155.0,0.2079674]
[1739453993524,0.00015601,96158.0,96157.0,0.207963]
[1739453995128,0.00015601,96158.0,96155.0,0.002]
[1739453995129,0.00015601,96158.0,96155.0,0.001]
[1739453995328,0.00015601,96158.0,96153.0,0.3608]
[1739453995631,0.00015601,96158.0,96157.0,0.001]
[1739453996136,0.00115601,96158.0,96155.0,0.001]
[1739453996729,0.00115601,96158.0,96157.0,0.207963]
[1739453996930,0.00115601,96158.0,96157.0,0.568763]
[1739453998433,0.00015601,96158.0,96157.0,0.568763]
[1739453998739,0.1879,96187.0,96185.0,0.2079018]
[1739453999625,0.76928,96199.0,96188.0,0.2078939]
[1739453999830,0.00015601,96196.0,96190.0,0.3608]
[1739454000037,0.09048,96191.0,96190.0,0.3608]
[1739454000623,0.09048,96191.0,96181.0,0.3608]
[1739454000624,0.207905,96184.0,96181.0,0.3608]
[1739454000829,0.2078962,96188.0,96181.0,0.3608]
[1739454001032,0.18679637,96191.0,96181.0,0.3608]
[1739454001233,0.00756016,96192.0,96181.0,0.3608]
[1739454001733,0.003,96184.0,96182.0,0.207909]
[1739454002039,0.003,96184.0,96181.0,0.3608]
[1739454002233,0.09048,96183.0,96181.0,0.3618]
[1739454003037,0.09048,96183.0,96181.0,0.3608]
[1739454003232,0.09048,96183.0,96181.0,0.568711]
[1739454003438,0.001,96184.0,96183.0,0.2079068]
[1739454004340,0.001,96184.0,96181.0,0.3608]
[1739454004528,0.09548,96183.0,96181.0,0.3608]
[1739454005129,0.09548,96183.0,96176.0,0.00015601]
[1739454005329,0.3608,96177.0,96151.0,0.3608]
[1739454005536,0.3608,96169.0,96151.0,0.3608]
[1739454005842,0.3608,96166.0,96151.0,0.3608]
[1739454006035,0.18679637,96175.0,96156.0,0.2079651]
[1739454006340,0.364,96176.0,96156.0,0.2079651]
[1739454006539,0.364,96176.0,96160.0,0.00015601]
[1739454006736,0.2079268,96174.0,96160.0,0.00015601]
[1739454006939,0.364,96176.0,96162.0,0.3608]
[1739454007137,0.09048,96175.0,96162.0,0.3608]
[1739454007336,0.09048,96175.0,96169.0,0.2079355]
[1739454007532,0.367,96176.0,96162.0,0.3608]
[1739454007733,0.09048,96175.0,96162.0,0.3608]
[1739454008546,0.09148,96175.0,96171.0,0.2079327]
[1739454008746,0.001,96175.0,96164.0,0.2079459]
[1739454009138,0.001,96175.0,96163.0,0.1888]
[1739454009336,0.09048,96174.0,96171.0,0.3608]
[1739454009742,0.003,96176.0,96163.0,0.5496]
[1739454010038,0.003,96176.0,96168.0,0.2079373]
[1739454010239,0.18695238,96180.0,96163.0,0.3622]
[1739454010544,0.2099225,96176.0,96163.0,0.3608]
[1739454010844,0.2079406,96168.0,96163.0,0.3608]
[1739454011139,0.3608,96178.0,96164.0,0.001]
[1739454011140,0.002,96176.0,96164.0,0.001]
[1739454011333,0.09048,96175.0,96164.0,0.001]
[1739454011845,0.09048,96175.0,96163.0,0.001]
[1739454011846,0.2079479,96164.0,96163.0,0.001]
[1739454012142,0.3628,96168.0,96144.0,0.18520118]
[1739454012339,0.18679637,96154.0,96144.0,0.18520118]
[1739454013432,0.18679637,96154.0,96141.0,0.3608]
[1739454013743,0.3608,96150.0,96131.0,0.3608]
[1739454013937,0.18679637,96141.0,96131.0,0.3608]
[1739454015245,0.1831,96140.0,96131.0,0.3608]
[1739454016842,0.199595,96140.0,96131.0,0.3608]
[1739454017044,0.2079899,96145.0,96131.0,0.3608]
[1739454017346,0.002,96141.0,96131.0,0.3608]
[1739454017542,0.2080068,96137.0,96131.0,0.3608]
[1739454017740,0.2080085,96136.0,96131.0,0.3608]
[1739454017939,0.2080085,96136.0,96117.0,0.3608]
[1739454017940,0.3608,96132.0,96121.0,0.00156014]
[1739454018148,0.27727637,96131.0,96121.0,0.00156014]
[1739454018349,0.18679637,96131.0,96121.0,0.00156014]
[1739454018852,0.20103239,96131.0,96121.0,0.00156014]
[1739454019043,0.2080368,96123.0,96121.0,0.00156014]
[1739454019441,0.20203239,96131.0,96121.0,0.00156014]
[1739454019442,0.2080245,96129.0,96121.0,0.00156014]
[1739454020056,0.1726,96128.0,96121.0,0.00156014]
[1739454020241,0.09048,96127.0,96121.0,0.00156014]
[1739454020851,0.001,96123.0,96121.0,0.00156014]
[1739454021552,0.09148,96127.0,96121.0,0.00156014]
[1739454022047,0.001,96127.0,96126.0,0.3608]
[1739454022237,0.09048,96127.0,96126.0,0.3608]
[1739454022551,0.1847,96135.0,96131.0,0.2080188]
[1739454022748,0.1725,96145.0,96134.0,0.5688128]
[1739454023345,0.1897,96148.0,96134.0,0.3608]
[1739454023549,0.2079851,96147.0,96129.0,0.2080227]
[1739454023748,0.2080263,96128.0,96124.0,0.3608]
[1739454024050,0.2080263,96128.0,96121.0,0.00156014]
[1739454024051,0.2080386,96123.0,96121.0,0.00156014]
[1739454025344,0.1799,96122.0,96121.0,0.00156014]
[1739454026247,0.18679637,96110.0,96095.0,0.3608]
[1739454026446,0.3608,96115.0,96095.0,0.3608]
[1739454026648,0.09052,96114.0,96095.0,0.3608]
[1739454027052,0.09052,96114.0,96103.0,0.3608]
[1739454028048,0.09152,96114.0,96103.0,0.3608]
[1739454028249,0.09152,96114.0,96105.0,0.2080741]
[1739454028457,0.00015601,96115.0,96103.0,0.3608]
[1739454028648,0.003,96114.0,96103.0,0.3608]
[1739454028849,0.09052,96113.0,96103.0,0.3608]
[1739454030455,0.09052,96113.0,96105.0,0.2080748]
[1739454030757,0.00315601,96115.0,96103.0,0.3608]
[1739454030957,0.00015601,96115.0,96103.0,0.3608]
[1739454031158,0.003,96113.0,96103.0,0.3608]
[1739454031364,0.09052,96112.0,96103.0,0.3608]
[1739454031864,0.2080696,96108.0,96095.0,0.3608]
[1739454032065,0.18979637,96113.0,96095.0,0.3608]
[1739454032362,0.003,96113.0,96103.0,0.3608]
[1739454032557,0.09052,96112.0,96103.0,0.3608]
[1739454033858,0.2080638,96111.0,96103.0,0.3608]
[1739454034064,0.18979637,96113.0,96103.0,0.3608]
[1739454034270,0.3608,96109.0,96083.0,0.36236107]
[1739454034558,0.3608,96101.0,96090.0,0.208106]
[1739454034767,0.18679637,96105.0,96083.0,0.36236107]
[1739454034962,0.2080923,96098.0,96083.0,0.36236107]
[1739454035151,0.18679637,96105.0,96083.0,0.36236107]
[1739454035354,0.2080896,96099.0,96083.0,0.36236107]
[1739454035756,0.1807,96104.0,96083.0,0.36236107]
[1739454035757,0.01421233,96100.0,96084.0,0.2081208]
[1739454035958,0.2080869,96100.0,96083.0,0.36236107]
[1739454036357,0.2080913,96098.0,96083.0,0.36236107]
[1739454036967,0.3608,96090.0,96079.0,0.0014]
[1739454037265,0.2081351,96078.0,96064.0,0.3608]
[1739454037561,0.18679637,96080.0,96064.0,0.3608]
[1739454037960,0.3608,96078.0,96064.0,0.3608]
[1739454038162,0.09052,96077.0,96064.0,0.3608]
[1739454039262,0.09052,96077.0,96072.0,0.3608]
[1739454039465,0.09052,96087.0,96076.0,0.3608]
[1739454039673,0.09052,96087.0,96086.0,0.5689167]
[1739454039872,0.37500642,96100.0,96091.0,0.2081052]
[1739454040069,0.00156137,96110.0,96104.0,0.2080759]
[1739454040258,0.2080313,96126.0,96109.0,0.3608]
[1739454040561,0.09052,96118.0,96109.0,0.3608]
[1739454041061,0.09052,96118.0,96101.0,0.3608]
[1739454041266,0.007,96110.0,96104.0,0.00015609]
[1739454042577,0.2080756,96105.0,96104.0,0.00015609]
[1739454042761,0.1783,96109.0,96104.0,0.00015609]
[1739454043366,0.3863686,96109.0,96104.0,0.00015609]
[1739454043566,0.1783,96109.0,96104.0,0.00015609]
[1739454043868,0.007,96105.0,96104.0,0.00015609]
[1739454044063,0.014,96105.0,96104.0,0.00015609]
[1739454044272,0.007,96105.0,96104.0,0.00015609]
[1739454044870,0.007,96105.0,96104.0,0.20823389]
[1739454045168,0.76972,96128.0,96104.0,0.00015609]
[1739454045368,0.2080009,96140.0,96122.0,0.3608]
[1739454045574,0.2080051,96138.0,96122.0,0.3608]
[1739454045961,0.2174342,96141.0,96122.0,0.3608]
[1739454046163,0.2174342,96141.0,96122.0,0.5441]
[1739454046470,0.2174342,96141.0,96130.0,0.2080214]
[1739454046668,0.2174342,96141.0,96131.0,0.3608]
[1739454046975,0.2174342,96141.0,96131.0,0.5423]
[1739454047569,0.21759029,96141.0,96131.0,0.5423]
[1739454048170,0.21759029,96141.0,96131.0,0.5473]
[1739454048572,0.00015609,96141.0,96131.0,0.5423]
[1739454048772,0.00015609,96141.0,96131.0,0.5463]
[1739454049269,0.2080116,96135.0,96131.0,0.5463]
[1739454049459,0.18695246,96141.0,96131.0,0.7543193]
[1739454049460,0.00015609,96141.0,96131.0,0.7543193]
[1739454049661,0.00015609,96141.0,96131.0,0.8463]
[1739454049967,0.00015609,96141.0,96140.0,0.5687998]
[1739454050970,0.00015609,96141.0,96140.0,0.8687998]
[1739454051264,0.00156031,96168.0,96167.0,0.2079395]
[1739454051559,0.00156031,96168.0,96167.0,0.5687395]
[1739454053470,0.00856031,96168.0,96167.0,0.5697395]
[1739454053866,0.01356031,96168.0,96167.0,0.5697395]
[1739454054077,0.00656031,96168.0,96167.0,0.5687395]
[1739454054286,0.01356031,96168.0,96167.0,0.5697395]
[1739454056870,0.012,96168.0,96167.0,0.5697395]
[1739454060878,0.000156,96177.0,96176.0,0.207922]
[1739454061075,0.000156,96177.0,96176.0,0.568722]
[1739454062180,0.000156,96177.0,96176.0,0.3608]
[1739454062978,0.002156,96177.0,96176.0,0.3618]
[1739454063177,0.009156,96177.0,96176.0,0.5357]
[1739454063375,0.009156,96177.0,96176.0,0.5347]
[1739454063580,0.007156,96177.0,96176.0,0.5357]
[1739454064386,0.000156,96177.0,96176.0,0.5387]
[1739454065491,0.000156,96177.0,96176.0,0.3658]
[1739454065685,0.000156,96177.0,96176.0,0.3648]
[1739454066980,0.000156,96177.0,96176.0,0.3608]
[1739454067289,0.000156,96177.0,96176.0,0.3638]
[1739454069284,0.000156,96177.0,96176.0,0.3658]
[1739454069892,0.000156,96177.0,96176.0,0.3638]
[1739454070390,0.001156,96177.0,96176.0,0.3638]
[1739454070891,0.001156,96177.0,96176.0,0.3608]
[1739454070892,0.002156,96177.0,96176.0,0.3608]
[1739454071682,0.003156,96177.0,96176.0,0.3608]
[1739454072484,0.002156,96177.0,96176.0,0.3608]
[1739454072793,0.003156,96177.0,96176.0,0.3608]
[1739454073192,0.002156,96177.0,96176.0,0.3648]
[1739454073793,0.002156,96177.0,96176.0,0.3628]
[1739454074180,0.000156,96177.0,96176.0,0.3678]
[1739454074390,0.1844,96208.0,96178.0,0.0519793]
[1739454074593,0.1844,96208.0,96205.0,0.9294593]
[1739454075981,0.1698,96214.0,96205.0,0.7216]
[1739454076182,0.00015592,96215.0,96213.0,0.568642]
[1739454077592,0.00715592,96215.0,96213.0,0.569642]
[1739454078292,0.00100002,96215.0,96213.0,0.570642]
[1739454078497,2e-08,96215.0,96213.0,0.870642]
[1739454079088,2e-08,96215.0,96213.0,0.570642]
[1739454079890,0.00015592,96224.0,96222.0,0.2078204]
[1739454080103,0.00015592,96224.0,96223.0,0.3608]
[1739454084203,0.2078265,96221.0,96217.0,0.2078332]
[1739454084497,0.00015592,96224.0,96214.0,0.18520118]
[1739454084498,0.2078298,96219.0,96214.0,0.18520118]